[Event "23rd Alekhine Master 2019"]
[Site "Voronezh"]
[Date "2019.06.13"]
[Round "2.12"]
[White "Moiseenko, Vadim"]
[Black "Smirnov, Timofey"]
[Result "1-0"]
[ECO "B90"]
[WhiteElo "2525"]
[BlackElo "2335"]
[Annotator "ChessBase"]
[PlyCount "67"]
[EventDate "2019.06.12"]
[EventType "swiss"]
[EventCountry "RUS"]
[SourceTitle "playchess.com"]
[Source "ChessBase"]
[SourceQuality "1"]
[TimeControl "40/5400+30:1800+30"]

1. e4 {[%emt 0:00:52]} c5 {[%emt 0:06:01]} 2. Nf3 {[%emt 0:00:31]} d6 {[%emt 0:00:06]} 3. d4 {[%emt 0:00:04]} Nf6 {[%emt 0:00:50]} 4. Nc3 {[%emt 0:05:46]} cxd4 {[%emt 0:00:06]} 5. Nxd4 {[%emt 0:00:08]} a6 {[%emt 0:00:10]} 6. Be3 {[%emt 0:00:22]} e5 {[%emt 0:00:27]} 7. Nf3 {[%emt 0:00:05]} h6 {[%emt 0:02:03]} 8. Bc4 {[%emt 0:00:50]} Nbd7 {[%emt 0:02:55]} 9. O-O {[%emt 0:01:37]} Qc7 {[%emt 0:06:33]} 10. Qe2 {[%emt 0:02:51]} b5 {[%emt 0:00:56]} 11. Nd5 {[%emt 0:11:12]} Nxd5 {[%emt 0:02:35]} 12. Bxd5 {[%emt 0:00:52]} Bb7 {[%emt 0:02:00]} 13. c4 {[%emt 0:00:33]} bxc4 {[%emt 0:10:39]} 14. Nd2 {[%emt 0:12:04]} Nf6 {[%emt 0:10:59]} 15. Nxc4 {[%emt 0:06:57]} Bxd5 {[%emt 0:03:22]} 16. exd5 {[%emt 0:00:17]} Be7 {[%emt 0:01:34]} 17. Nb6 {[%emt 0:03:16]} Rb8 {[%emt 0:00:06]} 18. Qxa6 {[%emt 0:00:13]} O-O {[%emt 0:03:00]} 19. Rac1 {[%emt 0:06:43]} Qd8 {[%emt 0:00:13]} 20. Rc6 {[%emt 0:09:57]} Ng4 {[%emt 0:00:34]} 21. Bc1 {[%emt 0:00:05]} e4 {[%emt 0:00:24]} 22. Bf4 {[%emt 0:00:11]} g5 {[%emt 0:01:20]} 23. Be3 {[%emt 0:03:01]} f5 {[%emt 0:06:08]} 24. Bd4 {[%emt 0:01:40]} f4 {[%emt 0:01:40]} 25. Qe2 {[%emt 0:01:41]} Bf6 {[%emt 0:01:40]} 26. Qxg4 {[%emt 0:01:41]} Bxd4 {[%emt 0:00:07]} 27. Nd7 {[%emt 0:00:07]} Re8 {[%emt 0:01:31]} 28. Nxb8 {[%emt 0:02:25]} Qxb8 {[%emt 0:00:02]} 29. Qd7 {[%emt 0:00:21]} e3 {[%emt 0:00:57]} 30. fxe3 {[%emt 0:01:11]} fxe3 {[%emt 0:00:27]} 31. Kh1 {[%emt 0:01:36]} e2 {[%emt 0:00:14]} 32. Re1 {[%emt 0:00:03]} Bf2 {[%emt 0:00:49]} 33. Rxd6 {[%emt 0:01:00]} Qxd6 {[%emt 0:00:19]} 34. Qxe8+ {[%emt 0:00:04]} 1-0

[Event "23rd Alekhine Master 2019"]
[Site "Voronezh"]
[Date "2019.06.13"]
[Round "2.14"]
[White "Demianjuk, Alexander"]
[Black "Rios, Cristhian Camilo"]
[Result "0-1"]
[ECO "D30"]
[WhiteElo "2338"]
[BlackElo "2513"]
[Annotator "ChessBase"]
[PlyCount "68"]
[EventDate "2019.06.12"]
[EventType "swiss"]
[EventCountry "RUS"]
[SourceTitle "playchess.com"]
[Source "ChessBase"]
[SourceQuality "1"]
[TimeControl "40/5400+30:1800+30"]

1. d4 {[%emt 0:00:00]} Nf6 {[%emt 0:00:00]} 2. c4 {[%emt 0:00:00]} e6 {[%emt 0:00:13]} 3. Nf3 {[%emt 0:00:00]} d5 {[%emt 0:00:23]} 4. Bg5 {[%emt 0:00:00]} Bb4+ {[%emt 0:00:51]} 5. Nc3 {[%emt 0:02:24]} h6 {[%emt 0:01:03]} 6. Bxf6 {[%emt 0:00:11]} Qxf6 {[%emt 0:00:10]} 7. Qb3 {[%emt 0:07:14]} c5 {[%emt 0:01:21]} 8. dxc5 {[%emt 0:00:27]} Nc6 {[%emt 0:01:49]} 9. e3 {[%emt 0:05:47]} O-O {[%emt 0:03:33]} 10. Be2 {[%emt 0:06:04]} dxc4 {[%emt 0:10:48]} 11. Qxc4 {[%emt 0:03:16]} b6 {[%emt 0:23:36]} 12. cxb6 {[%emt 0:06:26]} Ba6 {[%emt 0:00:09]} 13. Qb3 {[%emt 0:24:05]} Bxe2 {[%emt 0:04:55]} 14. Kxe2 {[%emt 0:00:48]} Rab8 {[%emt 0:05:55]} 15. bxa7 {[%emt 0:08:32]} Nxa7 {[%emt 0:00:32]} 16. Rhc1 {[%emt 0:00:45]} Qg6 {[%emt 0:14:26]} 17. Kf1 {[%emt 0:06:41]} Qh5 {[%emt 0:00:22]} 18. Qa4 {[%emt 0:02:35]} Nc8 {[%emt 0:01:57]} 19. Ne2 {[%emt 0:03:41]} Bd6 {[%emt 0:01:35]} 20. b3 {[%emt 0:00:07]} Bxh2 {[%emt 0:02:01]} 21. Nf4 {[%emt 0:07:11]} Bxf4 {[%emt 0:00:55]} 22. Qxf4 {[%emt 0:00:03]} Nb6 {[%emt 0:00:28]} 23. Qe5 {[%emt 0:00:53]} Qg6 {[%emt 0:00:51]} 24. e4 {[%emt 0:00:51]} Nd7 {[%emt 0:00:46]} 25. Qf4 {[%emt 0:02:46]} Nf6 {[%emt 0:00:34]} 26. Ne5 {[%emt 0:01:31]} Qh5 {[%emt 0:00:11]} 27. f3 {[%emt 0:00:09]} Rb5 {[%emt 0:03:43]} 28. Nc6 {[%emt 0:00:53]} Kh8 {[%emt 0:02:42]} 29. Kf2 {[%emt 0:01:30]} Ra8 {[%emt 0:02:24]} 30. Rc3 {[%emt 0:01:49]} Rc5 {[%emt 0:00:45]} 31. Qe3 {[%emt 0:01:29]} Qh4+ {[%emt 0:01:02]} 32. Kg1 {[%emt 0:00:42]} Rh5 {[%emt 0:01:36]} 33. Rcc1 {[%emt 0:01:12]} Qg3 {[%emt 0:03:25]} 34. Qf2 {[%emt 0:04:22]} Rh1+ {[%emt 0:00:18]} 0-1

[Event "23rd Alekhine Master 2019"]
[Site "Voronezh"]
[Date "2019.06.14"]
[Round "3.1"]
[White "Rios, Cristhian Camilo"]
[Black "Rozum, Ivan"]
[Result "1/2-1/2"]
[ECO "E37"]
[WhiteElo "2513"]
[BlackElo "2572"]
[Annotator "ChessBase"]
[PlyCount "62"]
[EventDate "2019.06.12"]
[EventType "swiss"]
[EventCountry "RUS"]
[SourceTitle "playchess.com"]
[Source "ChessBase"]
[SourceQuality "1"]
[TimeControl "40/5400+30:1800+30"]

1. d4 {[%emt 0:03:35]} Nf6 {[%emt 0:01:50]} 2. c4 {[%emt 0:00:17]} e6 {[%emt 0:00:14]} 3. Nc3 {[%emt 0:00:22]} Bb4 {[%emt 0:00:12]} 4. Qc2 {[%emt 0:00:24]} d5 {[%emt 0:00:17]} 5. a3 {[%emt 0:00:22]} Bxc3+ 6. Qxc3 {[%emt 0:00:11]} Ne4 {[%emt 0:04:52]} 7. Qc2 {[%emt 0:01:46]} c5 8. dxc5 {[%emt 0:04:53]} Nc6 {[%emt 0:01:48]} 9. Nf3 {[%emt 0:00:14]} Qa5+ {[%emt 0:00:17]} 10. Bd2 {[%emt 0:00:51]} Qxc5 {[%emt 0:00:12]} 11. e3 {[%emt 0:00:20]} Nxd2 {[%emt 0:03:06]} 12. Nxd2 {[%emt 0:01:11]} dxc4 13. Nxc4 {[%emt 0:09:38]} Ne5 {[%emt 0:04:57]} 14. Rc1 {[%emt 0:02:01]} Nxc4 15. Bxc4 {[%emt 0:02:25]} O-O {[%emt 0:07:59]} 16. Bd3 {[%emt 0:02:10]} Qxc2 17. Rxc2 {[%emt 0:00:13]} Bd7 {[%emt 0:01:50]} 18. Be4 {[%emt 0:03:22]} Rac8 {[%emt 0:00:52]} 19. Rxc8 {[%emt 0:00:45]} Rxc8 {[%emt 0:00:05]} 20. Kd2 {[%emt 0:03:06]} b6 {[%emt 0:00:20]} 21. Rc1 {[%emt 0:00:27]} Rxc1 {[%emt 0:00:45]} 22. Kxc1 {[%emt 0:00:09]} h6 {[%emt 0:00:06]} 23. Kd2 {[%emt 0:00:13]} Kf8 {[%emt 0:00:06]} 24. Kc3 {[%emt 0:00:26]} Ke7 {[%emt 0:00:06]} 25. Kd4 {[%emt 0:00:07]} Kd6 {[%emt 0:00:05]} 26. f4 {[%emt 0:00:21]} f6 {[%emt 0:00:05]} 27. b4 {[%emt 0:00:19]} Be8 {[%emt 0:00:08]} 28. Kc4 {[%emt 0:00:24]} Bd7 {[%emt 0:00:07]} 29. Kd4 {[%emt 0:00:06]} Be8 {[%emt 0:00:04]} 30. Kc4 {[%emt 0:00:06]} Bd7 {[%emt 0:00:04]} 31. Kd4 {[%emt 0:00:06]} Be8 1/2-1/2

[Event "23rd Alekhine Master 2019"]
[Site "Voronezh"]
[Date "2019.06.14"]
[Round "3.2"]
[White "Pavlov, Sergey"]
[Black "Puranik, Abhimanyu"]
[Result "*"]
[ECO "D56"]
[WhiteElo "2473"]
[BlackElo "2548"]
[Annotator "ChessBase"]
[PlyCount "24"]
[EventDate "2019.06.12"]
[EventType "swiss"]
[EventCountry "RUS"]
[SourceTitle "playchess.com"]
[Source "ChessBase"]
[SourceQuality "1"]
[TimeControl "40/5400+30:1800+30"]

1. d4 d5 2. Nf3 Nf6 3. c4 e6 4. Nc3 Be7 5. Bg5 h6 6. Bh4 O-O 7. e3 Nbd7 8. Bd3 dxc4 9. Bxc4 c5 10. O-O cxd4 11. exd4 Nb6 12. Bd3 g6 *

[Event "23rd Alekhine Master 2019"]
[Site "Voronezh"]
[Date "2019.06.14"]
[Round "3.2"]
[White "Pavlov, Sergey"]
[Black "Puranik, Abhimanyu"]
[Result "1/2-1/2"]
[ECO "A05"]
[WhiteElo "2473"]
[BlackElo "2548"]
[Annotator "ChessBase"]
[PlyCount "51"]
[EventDate "2019.06.12"]
[EventType "swiss"]
[EventCountry "RUS"]
[SourceTitle "playchess.com"]
[Source "ChessBase"]
[SourceQuality "1"]
[TimeControl "40/5400+30:1800+30"]

1. Nf3 Nf6 2. c4 g6 3. Nc3 c5 4. e4 d6 5. d4 cxd4 6. Nxd4 Nc6 7. Be2 Bg7 8. Be3 O-O 9. O-O Bd7 10. h3 Nxd4 11. Bxd4 Bc6 12. Be3 Bd7 13. Bd4 Bc6 14. Be3 Bd7 15. Bd4 Bc6 16. Be3 Bd7 17. Bd4 Bc6 18. Qc2 Nd7 19. Bxg7 Kxg7 20. b4 b6 21. Rad1 a5 22. a3 axb4 23. axb4 Qc7 24. Qb2 Kg8 25. Qc2 Kg7 26. Qb2 1/2-1/2

[Event "23rd Alekhine Master 2019"]
[Site "Voronezh"]
[Date "2019.06.14"]
[Round "3.4"]
[White "Ruiz Castillo, Joshua Daniel"]
[Black "Maiorov, Nikita"]
[Result "1/2-1/2"]
[ECO "C95"]
[WhiteElo "2472"]
[BlackElo "2527"]
[Annotator "ChessBase"]
[PlyCount "89"]
[EventDate "2019.06.12"]
[EventType "swiss"]
[EventCountry "RUS"]
[SourceTitle "playchess.com"]
[Source "ChessBase"]
[SourceQuality "1"]
[TimeControl "40/5400+30:1800+30"]

1. e4 {[%emt 0:03:53]} e5 {[%emt 0:05:22]} 2. Nf3 {[%emt 0:00:08]} Nc6 {[%emt 0:00:03]} 3. Bb5 {[%emt 0:01:01]} a6 {[%emt 0:00:05]} 4. Ba4 {[%emt 0:00:03]} Nf6 {[%emt 0:00:05]} 5. O-O {[%emt 0:00:09]} Be7 {[%emt 0:00:03]} 6. Re1 {[%emt 0:00:08]} b5 {[%emt 0:00:10]} 7. Bb3 {[%emt 0:00:05]} d6 {[%emt 0:00:03]} 8. c3 {[%emt 0:00:12]} O-O {[%emt 0:00:05]} 9. h3 {[%emt 0:00:05]} Nb8 {[%emt 0:00:04]} 10. d4 {[%emt 0:01:12]} Nbd7 {[%emt 0:00:34]} 11. c4 {[%emt 0:00:25]} c6 {[%emt 0:01:07]} 12. a3 {[%emt 0:00:17]} exd4 13. Nxd4 {[%emt 0:00:09]} Ne5 {[%emt 0:00:57]} 14. cxb5 axb5 {[%emt 0:00:32]} 15. Bg5 {[%emt 0:24:17]} Bd7 {[%emt 0:13:18]} 16. Nc3 {[%emt 0:00:26]} Qb6 {[%emt 0:02:53]} 17. f4 {[%emt 0:07:55]} Nc4 {[%emt 0:25:31]} 18. e5 {[%emt 0:01:30]} dxe5 {[%emt 0:00:06]} 19. fxe5 {[%emt 0:00:03]} Bc5 {[%emt 0:01:32]} 20. exf6 {[%emt 0:00:45]} Bxd4+ {[%emt 0:00:10]} 21. Kh1 {[%emt 0:00:08]} Bf5 {[%emt 0:04:31]} 22. Bxc4 {[%emt 0:02:40]} bxc4 {[%emt 0:00:06]} 23. Na4 {[%emt 0:00:05]} Qa7 {[%emt 0:03:57]} 24. Re7 {[%emt 0:01:52]} Bd7 {[%emt 0:06:52]} 25. Qh5 {[%emt 0:20:01]} Qxa4 {[%emt 0:06:20]} 26. Rxd7 {[%emt 0:00:10]} c5 {[%emt 0:00:37]} 27. Re7 {[%emt 0:00:36]} Qc2 {[%emt 0:00:21]} 28. fxg7 Bxg7 {[%emt 0:00:07]} 29. Rf1 {[%emt 0:01:15]} Qg6 {[%emt 0:00:54]} 30. Qh4 {[%emt 0:00:14]} Rad8 {[%emt 0:08:06]} 31. Re4 {[%emt 0:10:51]} Rd4 {[%emt 0:04:27]} 32. Rxd4 {[%emt 0:00:04]} cxd4 {[%emt 0:00:34]} 33. Bf6 {[%emt 0:00:03]} c3 {[%emt 0:04:12]} 34. bxc3 {[%emt 0:04:41]} dxc3 {[%emt 0:00:16]} 35. Bxg7 {[%emt 0:00:03]} Qxg7 {[%emt 0:00:12]} 36. Qc4 {[%emt 0:00:09]} Rd8 {[%emt 0:09:43]} 37. a4 {[%emt 0:12:59]} h6 {[%emt 0:01:10]} 38. Rf3 {[%emt 0:02:40]} Rd2 {[%emt 0:00:32]} 39. Qc8+ {[%emt 0:01:27]} Kh7 {[%emt 0:00:05]} 40. Qf5+ {[%emt 0:00:00]} Kg8 {[%emt 0:00:00]} 41. Qc8+ {[%emt 0:00:10]} Kh7 {[%emt 0:00:46]} 42. Qf5+ {[%emt 0:00:07]} Kg8 {[%emt 0:00:06]} 43. Qc8+ {[%emt 0:00:03]} Kh7 {[%emt 0:00:06]} 44. Qf5+ {[%emt 0:00:03]} Kg8 {[%emt 0:00:05]} 45. Qc8+ {[%emt 0:00:03]} 1/2-1/2

[Event "23rd Alekhine Master 2019"]
[Site "Voronezh"]
[Date "2019.06.14"]
[Round "3.5"]
[White "Shariyazdanov, Andrey"]
[Black "Nesterov, Arseniy"]
[Result "0-1"]
[ECO "A17"]
[WhiteElo "2526"]
[BlackElo "2423"]
[Annotator "ChessBase"]
[PlyCount "87"]
[EventDate "2019.06.12"]
[EventType "swiss"]
[EventCountry "RUS"]
[SourceTitle "playchess.com"]
[Source "ChessBase"]
[SourceQuality "1"]
[TimeControl "40/5400+30:1800+30"]

1. c4 {[%emt 0:00:22]} Nf6 {[%emt 0:00:03]} 2. Nf3 {[%emt 0:00:24]} e6 {[%emt 0:00:17]} 3. Nc3 {[%emt 0:00:38]} Bb4 {[%emt 0:00:51]} 4. Qc2 {[%emt 0:00:31]} c5 {[%emt 0:01:02]} 5. a3 {[%emt 0:00:15]} Ba5 {[%emt 0:00:07]} 6. e3 {[%emt 0:00:58]} O-O {[%emt 0:01:09]} 7. d4 {[%emt 0:02:17]} b6 {[%emt 0:00:08]} 8. Bd2 {[%emt 0:04:53]} Bb7 {[%emt 0:02:29]} 9. Bd3 {[%emt 0:00:25]} Bxf3 10. gxf3 {[%emt 0:01:10]} Nc6 {[%emt 0:15:17]} 11. d5 {[%emt 0:09:18]} Ne5 {[%emt 0:04:31]} 12. Be2 {[%emt 0:00:28]} exd5 13. cxd5 {[%emt 0:04:39]} Re8 {[%emt 0:08:26]} 14. f4 {[%emt 0:21:24]} Ng6 {[%emt 0:06:11]} 15. d6 {[%emt 0:05:15]} Qb8 {[%emt 0:19:58]} 16. Bf3 {[%emt 0:06:05]} Qxd6 {[%emt 0:00:14]} 17. Bxa8 {[%emt 0:00:06]} Rxa8 {[%emt 0:00:04]} 18. O-O-O {[%emt 0:00:25]} Qc6 {[%emt 0:01:53]} 19. h4 {[%emt 0:02:19]} d5 {[%emt 0:02:08]} 20. Kb1 {[%emt 0:05:31]} Ne7 {[%emt 0:08:12]} 21. Rhg1 {[%emt 0:03:18]} Rc8 {[%emt 0:05:56]} 22. Qd3 {[%emt 0:04:09]} h6 {[%emt 0:04:36]} 23. f3 {[%emt 0:01:14]} Qe6 {[%emt 0:02:40]} 24. e4 {[%emt 0:03:05]} d4 {[%emt 0:05:08]} 25. Ne2 {[%emt 0:00:09]} Bxd2 {[%emt 0:00:04]} 26. Qxd2 {[%emt 0:01:14]} Qb3 {[%emt 0:02:16]} 27. Rdf1 {[%emt 0:01:16]} Nc6 {[%emt 0:02:49]} 28. Nc1 {[%emt 0:00:13]} Qb5 {[%emt 0:00:27]} 29. Rf2 {[%emt 0:04:00]} c4 {[%emt 0:04:17]} 30. Rfg2 {[%emt 0:00:39]} Ne8 {[%emt 0:00:44]} 31. Rxg7+ {[%emt 0:04:46]} Nxg7 {[%emt 0:00:01]} 32. Qg2 {[%emt 0:00:08]} Kf8 {[%emt 0:00:05]} 33. Qxg7+ {[%emt 0:00:07]} Ke7 {[%emt 0:00:03]} 34. e5 {[%emt 0:00:15]} Qd5 {[%emt 0:01:06]} 35. Rg6 {[%emt 0:00:35]} Rd8 {[%emt 0:02:09]} 36. f5 {[%emt 0:05:28]} Ke8 {[%emt 0:01:21]} 37. Rxh6 {[%emt 0:05:24]} Nxe5 {[%emt 0:00:36]} 38. f4 {[%emt 0:01:29]} Nc6 {[%emt 0:00:45]} 39. Qf6 {[%emt 0:03:53]} d3 {[%emt 0:00:46]} 40. Rh8+ {[%emt 0:00:00]} Kd7 {[%emt 0:00:00]} 41. Rxd8+ Nxd8 {[%emt 0:00:12]} 42. Qe5 {[%emt 0:05:21]} Qxe5 43. fxe5 {[%emt 0:00:05]} d2 {[%emt 0:02:02]} 44. Kc2 {[%emt 0:00:04]} 0-1

[Event "23rd Alekhine Master 2019"]
[Site "Voronezh"]
[Date "2019.06.14"]
[Round "3.6"]
[White "Yeletsky, Ivan"]
[Black "Moiseenko, Vadim"]
[Result "1/2-1/2"]
[ECO "C60"]
[WhiteElo "2438"]
[BlackElo "2525"]
[Annotator "ChessBase"]
[PlyCount "81"]
[EventDate "2019.06.12"]
[EventType "swiss"]
[EventCountry "RUS"]
[SourceTitle "playchess.com"]
[Source "ChessBase"]
[SourceQuality "1"]
[TimeControl "40/5400+30:1800+30"]

1. e4 {[%emt 0:00:16]} e5 {[%emt 0:02:55]} 2. Nf3 {[%emt 0:00:11]} Nc6 {[%emt 0:00:10]} 3. Bb5 {[%emt 0:00:22]} g6 {[%emt 0:00:44]} 4. d4 {[%emt 0:00:33]} exd4 {[%emt 0:00:17]} 5. Bg5 {[%emt 0:00:23]} Be7 {[%emt 0:01:24]} 6. Bxe7 {[%emt 0:00:30]} Ngxe7 {[%emt 0:00:30]} 7. Nxd4 {[%emt 0:00:30]} O-O {[%emt 0:00:30]} 8. Nc3 {[%emt 0:00:30]} d6 {[%emt 0:00:30]} 9. Qd2 {[%emt 0:00:30]} Nxd4 {[%emt 0:00:30]} 10. Qxd4 {[%emt 0:00:30]} a6 {[%emt 0:00:30]} 11. Be2 {[%emt 0:00:30]} c5 {[%emt 0:00:30]} 12. Qd2 {[%emt 0:00:30]} Nc6 {[%emt 0:00:30]} 13. O-O-O {[%emt 0:00:30]} Nd4 {[%emt 0:19:49]} 14. Bc4 {[%emt 0:40:18]} Be6 {[%emt 0:02:17]} 15. Bxe6 {[%emt 0:01:15]} fxe6 {[%emt 0:00:14]} 16. f3 {[%emt 0:00:32]} Qf6 {[%emt 0:05:20]} 17. Kb1 {[%emt 0:01:02]} Rad8 {[%emt 0:00:11]} 18. h4 {[%emt 0:01:06]} Nc6 {[%emt 0:07:58]} 19. h5 {[%emt 0:16:18]} g5 {[%emt 0:00:05]} 20. e5 {[%emt 0:00:08]} Qxe5 {[%emt 0:08:31]} 21. Rhe1 {[%emt 0:00:11]} Qf4 {[%emt 0:03:33]} 22. Ne4 {[%emt 0:08:18]} Rf5 {[%emt 0:04:36]} 23. Qxf4 {[%emt 0:09:50]} gxf4 {[%emt 0:00:15]} 24. Nxd6 {[%emt 0:00:59]} Rxh5 {[%emt 0:06:51]} 25. Nxb7 {[%emt 0:00:10]} Rxd1+ {[%emt 0:06:13]} 26. Rxd1 {[%emt 0:00:08]} c4 {[%emt 0:06:38]} 27. Nd8 {[%emt 0:06:06]} Nxd8 {[%emt 0:01:06]} 28. Rxd8+ {[%emt 0:00:19]} Kf7 {[%emt 0:00:39]} 29. c3 {[%emt 0:01:06]} Rh1+ {[%emt 0:07:18]} 30. Kc2 {[%emt 0:00:07]} Ra1 {[%emt 0:01:37]} 31. Rd4 {[%emt 0:06:53]} e5 {[%emt 0:00:05]} 32. Rxc4 {[%emt 0:00:09]} Rg1 {[%emt 0:00:05]} 33. Kd3 {[%emt 0:01:25]} Rxg2 {[%emt 0:00:18]} 34. Ke4 {[%emt 0:01:21]} Kf6 {[%emt 0:06:10]} 35. Rc6+ {[%emt 0:00:35]} Kg5 {[%emt 0:00:04]} 36. Kxe5 {[%emt 0:01:09]} Rxb2 {[%emt 0:01:26]} 37. Rxa6 {[%emt 0:00:20]} Re2+ {[%emt 0:03:14]} 38. Kd4 {[%emt 0:00:45]} Rd2+ {[%emt 0:00:13]} 39. Ke4 {[%emt 0:00:38]} Re2+ {[%emt 0:00:04]} 40. Kd4 {[%emt 0:00:00]} Rd2+ {[%emt 0:00:00]} 41. Ke4 1/2-1/2

[Event "23rd Alekhine Master 2019"]
[Site "Voronezh"]
[Date "2019.06.14"]
[Round "3.7"]
[White "Afanasiev, Nikita"]
[Black "Yangutov, Aleksey"]
[Result "1-0"]
[ECO "E38"]
[WhiteElo "2524"]
[BlackElo "2049"]
[Annotator "ChessBase"]
[PlyCount "49"]
[EventDate "2019.06.12"]
[EventType "swiss"]
[EventCountry "RUS"]
[SourceTitle "playchess.com"]
[Source "ChessBase"]
[SourceQuality "1"]
[TimeControl "40/5400+30:1800+30"]

1. d4 {[%emt 0:08:17]} Nf6 {[%emt 0:00:00]} 2. c4 {[%emt 0:00:07]} e6 {[%emt 0:00:00]} 3. Nc3 {[%emt 0:00:05]} Bb4 {[%emt 0:00:26]} 4. Qc2 {[%emt 0:00:26]} c5 {[%emt 0:00:17]} 5. dxc5 {[%emt 0:00:18]} Na6 {[%emt 0:00:16]} 6. a3 {[%emt 0:00:56]} Bxc3+ {[%emt 0:00:18]} 7. Qxc3 {[%emt 0:00:30]} Nxc5 {[%emt 0:00:21]} 8. b4 {[%emt 0:00:12]} Nce4 {[%emt 0:00:13]} 9. Qb2 {[%emt 0:00:24]} d5 {[%emt 0:01:42]} 10. c5 {[%emt 0:00:58]} d4 {[%emt 0:06:23]} 11. e3 {[%emt 0:19:13]} dxe3 {[%emt 0:15:53]} 12. Bxe3 {[%emt 0:00:28]} O-O {[%emt 0:02:16]} 13. Qc2 {[%emt 0:09:53]} h6 {[%emt 0:28:53]} 14. Bd3 {[%emt 0:13:13]} Qd5 {[%emt 0:09:06]} 15. Rd1 {[%emt 0:01:01]} Kh8 {[%emt 0:10:09]} 16. f3 {[%emt 0:07:08]} Ng5 {[%emt 0:01:34]} 17. h4 {[%emt 0:01:05]} Qe5 {[%emt 0:00:46]} 18. Kf2 {[%emt 0:00:17]} Ngh7 {[%emt 0:00:53]} 19. Ne2 {[%emt 0:00:11]} Qc7 {[%emt 0:10:04]} 20. g4 {[%emt 0:00:05]} Nd5 {[%emt 0:03:18]} 21. Bxh7 {[%emt 0:00:39]} Nxe3 {[%emt 0:00:07]} 22. Kxe3 {[%emt 0:00:05]} f5 {[%emt 0:00:04]} 23. Bg6 {[%emt 0:00:42]} Qe5+ {[%emt 0:00:28]} 24. Kf2 {[%emt 0:00:35]} fxg4 {[%emt 0:01:53]} 25. Qe4 {[%emt 0:05:15]} 1-0

[Event "23rd Alekhine Master 2019"]
[Site "Voronezh"]
[Date "2019.06.14"]
[Round "3.9"]
[White "Shaposhnikov, Evgeny"]
[Black "Makarian, Rudik"]
[Result "1-0"]
[ECO "A05"]
[WhiteElo "2572"]
[BlackElo "2383"]
[Annotator "ChessBase"]
[PlyCount "43"]
[EventDate "2019.06.12"]
[EventType "swiss"]
[EventCountry "RUS"]
[SourceTitle "playchess.com"]
[Source "ChessBase"]
[SourceQuality "1"]
[TimeControl "40/5400+30:1800+30"]

1. Nf3 {[%emt 0:00:00]} Nf6 {[%emt 0:03:40]} 2. c4 {[%emt 0:00:24]} e6 {[%emt 0:00:30]} 3. d4 {[%emt 0:00:30]} c5 {[%emt 0:00:30]} 4. g3 {[%emt 0:00:30]} Qa5+ {[%emt 0:00:30]} 5. Nbd2 {[%emt 0:00:30]} cxd4 {[%emt 0:00:30]} 6. Nxd4 {[%emt 0:00:30]} Nc6 {[%emt 0:08:43]} 7. N4f3 {[%emt 0:10:46]} e5 {[%emt 0:11:49]} 8. e3 {[%emt 0:09:28]} Bc5 {[%emt 0:07:26]} 9. Bg2 {[%emt 0:07:47]} e4 {[%emt 0:13:15]} 10. Ng5 {[%emt 0:00:26]} Bxe3 {[%emt 0:12:08]} 11. Ngxe4 {[%emt 0:00:50]} Nxe4 {[%emt 0:00:04]} 12. Bxe4 {[%emt 0:00:17]} Bb6 {[%emt 0:00:04]} 13. O-O {[%emt 0:01:38]} O-O {[%emt 0:00:06]} 14. Nb3 {[%emt 0:07:38]} Qe5 {[%emt 0:00:06]} 15. Re1 {[%emt 0:02:57]} Qf6 {[%emt 0:00:23]} 16. Bf4 {[%emt 0:06:36]} d6 {[%emt 0:09:55]} 17. Bxc6 {[%emt 0:09:11]} bxc6 {[%emt 0:00:05]} 18. Qxd6 {[%emt 0:00:24]} Be6 {[%emt 0:00:08]} 19. c5 {[%emt 0:00:43]} Bd8 {[%emt 0:00:05]} 20. Qxc6 {[%emt 0:04:09]} Rc8 {[%emt 0:02:46]} 21. Qb7 {[%emt 0:01:41]} a5 {[%emt 0:07:01]} 22. Bd6 {[%emt 0:02:14]} 1-0

[Event "23rd Alekhine Master 2019"]
[Site "Voronezh"]
[Date "2019.06.14"]
[Round "3.10"]
[White "Korchmar, Vasiliy"]
[Black "Goganov, Aleksey"]
[Result "0-1"]
[ECO "D43"]
[WhiteElo "2419"]
[BlackElo "2559"]
[Annotator "ChessBase"]
[PlyCount "92"]
[EventDate "2019.06.12"]
[EventType "swiss"]
[EventCountry "RUS"]
[SourceTitle "playchess.com"]
[Source "ChessBase"]
[SourceQuality "1"]
[TimeControl "40/5400+30:1800+30"]

1. d4 {[%emt 0:00:31]} d5 {[%emt 0:00:00]} 2. c4 {[%emt 0:00:31]} c6 {[%emt 0:00:00]} 3. Nf3 {[%emt 0:00:08]} Nf6 {[%emt 0:00:00]} 4. Nc3 {[%emt 0:00:44]} e6 {[%emt 0:00:00]} 5. Bg5 {[%emt 0:00:08]} h6 {[%emt 0:00:24]} 6. Bh4 {[%emt 0:00:25]} dxc4 {[%emt 0:00:14]} 7. e4 {[%emt 0:00:12]} g5 {[%emt 0:00:27]} 8. Bg3 {[%emt 0:00:06]} b5 {[%emt 0:00:04]} 9. Be2 {[%emt 0:00:29]} Bb7 {[%emt 0:00:05]} 10. O-O {[%emt 0:00:25]} Nbd7 {[%emt 0:00:10]} 11. Ne5 {[%emt 0:00:19]} Bb4 {[%emt 0:01:40]} 12. Qc2 {[%emt 0:24:12]} a6 {[%emt 0:04:34]} 13. Rad1 {[%emt 0:11:36]} Qe7 {[%emt 0:06:55]} 14. a4 {[%emt 0:09:23]} Nxe5 {[%emt 0:23:08]} 15. Bxe5 {[%emt 0:01:33]} O-O {[%emt 0:00:31]} 16. b3 {[%emt 0:15:14]} Bxc3 {[%emt 0:10:17]} 17. Bxf6 {[%emt 0:00:08]} Qxf6 {[%emt 0:00:05]} 18. Qxc3 {[%emt 0:00:29]} c5 {[%emt 0:08:41]} 19. e5 {[%emt 0:06:29]} cxd4 {[%emt 0:00:34]} 20. Qxd4 {[%emt 0:00:30]} Qf4 {[%emt 0:00:30]} 21. Qxf4 {[%emt 0:00:30]} gxf4 {[%emt 0:00:30]} 22. bxc4 {[%emt 0:00:30]} bxa4 {[%emt 0:00:30]} 23. Ra1 {[%emt 0:00:30]} Rac8 {[%emt 0:00:30]} 24. Rxa4 {[%emt 0:00:30]} Rc5 {[%emt 0:00:30]} 25. Bf3 {[%emt 0:00:30]} Bxf3 {[%emt 0:11:59]} 26. gxf3 {[%emt 0:16:02]} a5 {[%emt 0:00:15]} 27. Re1 {[%emt 0:01:08]} Rd8 {[%emt 0:09:03]} 28. Rea1 {[%emt 0:01:45]} Ra8 {[%emt 0:00:49]} 29. Re1 {[%emt 0:00:07]} Kh7 {[%emt 0:03:15]} 30. Re4 {[%emt 0:00:05]} Kg6 {[%emt 0:00:32]} 31. Rxf4 {[%emt 0:00:07]} Rxe5 {[%emt 0:00:04]} 32. Kg2 {[%emt 0:01:52]} Rc5 {[%emt 0:03:16]} 33. Rd4 {[%emt 0:00:59]} Kf5 {[%emt 0:01:13]} 34. Rh4 {[%emt 0:00:52]} Kg6 {[%emt 0:03:30]} 35. Rd4 {[%emt 0:00:05]} Rb8 {[%emt 0:00:39]} 36. Rd2 {[%emt 0:00:47]} Rb4 {[%emt 0:03:59]} 37. Rxb4 {[%emt 0:00:47]} axb4 {[%emt 0:00:04]} 38. Rd4 {[%emt 0:00:13]} e5 {[%emt 0:01:02]} 39. Rd6+ {[%emt 0:02:51]} f6 {[%emt 0:00:07]} 40. Rb6 {[%emt 0:00:00]} Rxc4 {[%emt 0:00:00]} 41. Kg3 {[%emt 0:03:28]} Kf7 {[%emt 0:01:16]} 42. Rb7+ {[%emt 0:01:22]} Ke6 {[%emt 0:00:04]} 43. Rb6+ {[%emt 0:01:51]} Kd5 {[%emt 0:03:27]} 44. Rxf6 {[%emt 0:00:19]} Rc6 {[%emt 0:00:18]} 45. Rf5 {[%emt 0:01:13]} b3 {[%emt 0:00:41]} 46. f4 {[%emt 0:00:04]} Rc3+ {[%emt 0:00:03]} 0-1